[Event "*** Titled Tuesday Blitz AM"]
[Site "Chess.com"]
[Date "2020.01.07"]
[Round "4"]
[White "kkpanu9"]
[Black "Nathan_Filgueiras"]
[Result "0-1"]
[WhiteElo "2082"]
[BlackElo "2316"]
[TimeControl "180+2"]
[EndTime "9:48:07 PST"]
[Termination "Nathan_Filgueiras won by resignation"]

1. e4 {[%clk 0:03:01.9]} 1... c5 {[%clk 0:03:00.5]} 2. Nf3 {[%clk 0:03:03.1]}
2... Nc6 {[%clk 0:03:01.1]} 3. d4 {[%clk 0:03:04.1]} 3... cxd4 {[%clk
0:03:01.7]} 4. Nxd4 {[%clk 0:03:06]} 4... e5 {[%clk 0:03:02.7]} 5. Nb5 {[%clk
0:03:00.2]} 5... d6 {[%clk 0:03:01.3]} 6. N1c3 {[%clk 0:02:45.5]} 6... a6 {[%clk
0:03:01.6]} 7. Na3 {[%clk 0:02:40.9]} 7... b5 {[%clk 0:03:02.7]} 8. Nd5 {[%clk
0:02:38.8]} 8... Nce7 {[%clk 0:03:03.6]} 9. c4 {[%clk 0:02:17.6]} 9... Nxd5
{[%clk 0:03:04.3]} 10. Qxd5 {[%clk 0:02:17.7]} 10... Be6 {[%clk 0:03:04.4]} 11.
Qd2 {[%clk 0:02:09.1]} 11... Nf6 {[%clk 0:02:55.8]} 12. cxb5 {[%clk 0:01:57.7]}
12... Nxe4 {[%clk 0:02:53.7]} 13. Qc2 {[%clk 0:01:47.9]} 13... d5 {[%clk
0:02:28.1]} 14. Qc6+ {[%clk 0:01:17.8]} 14... Bd7 {[%clk 0:02:27.6]} 15. Qxd5
{[%clk 0:01:18.4]} 15... Bb4+ {[%clk 0:02:27.7]} 16. Bd2 {[%clk 0:00:57]} 16...
Bxd2+ {[%clk 0:02:24.8]} 17. Kd1 {[%clk 0:00:50.6]} 17... Bg4+ {[%clk
0:02:24.9]} 0-1

[Event "*** Titled Tuesday Blitz AM"]
[Site "Chess.com"]
[Date "2020.01.07"]
[Round "4"]
[White "FelixJoseYnojosa"]
[Black "XxPetroffsxX"]
[Result "1-0"]
[WhiteElo "2613"]
[BlackElo "1986"]
[TimeControl "180+2"]
[EndTime "9:48:36 PST"]
[Termination "FelixJoseYnojosa won by resignation"]

1. c4 {[%clk 0:03:01.9]} 1... Nf6 {[%clk 0:02:58.7]} 2. Nc3 {[%clk 0:03:03.1]}
2... e6 {[%clk 0:02:59.8]} 3. e4 {[%clk 0:03:04.1]} 3... d5 {[%clk 0:02:59.6]}
4. e5 {[%clk 0:03:05.4]} 4... Nfd7 {[%clk 0:02:58.6]} 5. d4 {[%clk 0:03:01.9]}
5... dxc4 {[%clk 0:02:58]} 6. Bxc4 {[%clk 0:02:43.4]} 6... c5 {[%clk 0:02:57.3]}
7. Nf3 {[%clk 0:02:44.3]} 7... cxd4 {[%clk 0:02:57.6]} 8. Qxd4 {[%clk
0:02:45.3]} 8... Nc6 {[%clk 0:02:57.6]} 9. Qe4 {[%clk 0:02:46.2]} 9... Nc5
{[%clk 0:02:46.7]} 10. Qe2 {[%clk 0:02:46.1]} 10... Be7 {[%clk 0:02:40.7]} 11.
O-O {[%clk 0:02:45.7]} 11... O-O {[%clk 0:02:39.6]} 12. Rd1 {[%clk 0:02:31.4]}
12... Qe8 {[%clk 0:02:27.1]} 13. a3 {[%clk 0:02:31.2]} 13... a6 {[%clk
0:02:24.8]} 14. b4 {[%clk 0:02:32.2]} 14... b5 {[%clk 0:02:24.4]} 15. Ba2 {[%clk
0:02:31.1]} 15... Na4 {[%clk 0:02:19.8]} 16. Nxa4 {[%clk 0:02:28.9]} 16... bxa4
{[%clk 0:02:20.5]} 17. Bb1 {[%clk 0:02:25.7]} 17... g6 {[%clk 0:02:20.1]} 18.
Bh6 {[%clk 0:02:25.7]} 18... Bb7 {[%clk 0:02:19.6]} 19. Be4 {[%clk 0:02:23.8]}
19... Qc8 {[%clk 0:02:11.1]} 20. Bxf8 {[%clk 0:02:24.1]} 20... Bxf8 {[%clk
0:02:11.3]} 21. Rac1 {[%clk 0:02:25.7]} 21... Qe8 {[%clk 0:02:10.6]} 22. Qc2
{[%clk 0:02:17.8]} 22... Rc8 {[%clk 0:02:10.6]} 23. Qxa4 {[%clk 0:02:18.3]}
23... Nd4 {[%clk 0:01:23.2]} 24. Qxe8 {[%clk 0:02:08.5]} 1-0

[Event "*** Titled Tuesday Blitz AM"]
[Site "Chess.com"]
[Date "2020.01.07"]
[Round "4"]
[White "HovmoellerHest"]
[Black "ShahMatKanal"]
[Result "0-1"]
[WhiteElo "2298"]
[BlackElo "2514"]
[TimeControl "180+2"]
[EndTime "9:48:51 PST"]
[Termination "ShahMatKanal won by resignation"]

1. d4 {[%clk 0:03:01.9]} 1... d5 {[%clk 0:03:00.2]} 2. c4 {[%clk 0:03:02.3]}
2... c6 {[%clk 0:03:00.8]} 3. Nf3 {[%clk 0:03:02.8]} 3... Nf6 {[%clk 0:03:02.1]}
4. Nbd2 {[%clk 0:02:58.3]} 4... Bf5 {[%clk 0:02:54.1]} 5. g3 {[%clk 0:02:53.2]}
5... e6 {[%clk 0:02:54.3]} 6. Bg2 {[%clk 0:02:53.8]} 6... Be7 {[%clk 0:02:54.6]}
7. Nh4 {[%clk 0:02:52.2]} 7... Bg4 {[%clk 0:02:53.5]} 8. h3 {[%clk 0:02:49.5]}
8... Bh5 {[%clk 0:02:54.5]} 9. Qc2 {[%clk 0:02:38.8]} 9... Nbd7 {[%clk
0:02:47.1]} 10. e3 {[%clk 0:02:34.8]} 10... Ng8 {[%clk 0:02:40.8]} 11. Nhf3
{[%clk 0:02:31.8]} 11... Bg6 {[%clk 0:02:42.1]} 12. Qb3 {[%clk 0:02:32.5]} 12...
Qb6 {[%clk 0:02:42.5]} 13. O-O {[%clk 0:02:28.5]} 13... Ngf6 {[%clk 0:02:42.2]}
14. c5 {[%clk 0:02:21.2]} 14... Qxb3 {[%clk 0:02:42.8]} 15. axb3 {[%clk
0:02:22.2]} 15... a6 {[%clk 0:02:43.7]} 16. b4 {[%clk 0:02:21.1]} 16... O-O
{[%clk 0:02:31.8]} 17. Re1 {[%clk 0:02:19]} 17... Bd3 {[%clk 0:02:24.3]} 18. Ra3
{[%clk 0:02:07]} 18... Bb5 {[%clk 0:02:25]} 19. g4 {[%clk 0:01:39.5]} 19... h6
{[%clk 0:02:22.3]} 20. Ne5 {[%clk 0:01:38.3]} 20... Nxe5 {[%clk 0:02:19.4]} 21.
dxe5 {[%clk 0:01:39.4]} 21... Nd7 {[%clk 0:02:20.9]} 22. f4 {[%clk 0:01:40.1]}
22... b6 {[%clk 0:02:19.2]} 23. Nb3 {[%clk 0:01:14.3]} 23... bxc5 {[%clk
0:02:17.3]} 24. bxc5 {[%clk 0:01:14.9]} 24... Nxc5 {[%clk 0:02:18.5]} 25. Nxc5
{[%clk 0:01:11.7]} 25... Bxc5 {[%clk 0:02:20.4]} 26. Ra1 {[%clk 0:01:12.7]}
26... Bb4 {[%clk 0:02:18]} 27. Rd1 {[%clk 0:01:10.7]} 27... Be2 {[%clk
0:02:15.3]} 28. Rd4 {[%clk 0:01:11.4]} 28... c5 {[%clk 0:02:15.5]} 0-1

[Event "*** Titled Tuesday Blitz AM"]
[Site "Chess.com"]
[Date "2020.01.07"]
[Round "4"]
[White "SmirnovAlexandrA"]
[Black "BeanScreen"]
[Result "0-1"]
[WhiteElo "2144"]
[BlackElo "2406"]
[TimeControl "180+2"]
[EndTime "9:48:56 PST"]
[Termination "BeanScreen won by resignation"]

1. e4 {[%clk 0:02:53.1]} 1... e5 {[%clk 0:03:00.9]} 2. d4 {[%clk 0:02:53.2]}
2... exd4 {[%clk 0:03:01.8]} 3. Qxd4 {[%clk 0:02:55.1]} 3... Nc6 {[%clk
0:03:03.6]} 4. Qe3 {[%clk 0:02:55.8]} 4... Nf6 {[%clk 0:03:05.3]} 5. Nc3 {[%clk
0:02:56.7]} 5... Bb4 {[%clk 0:03:07.1]} 6. Bd2 {[%clk 0:02:57.5]} 6... O-O
{[%clk 0:03:08.9]} 7. O-O-O {[%clk 0:02:58.1]} 7... Re8 {[%clk 0:03:10.8]} 8.
Qg3 {[%clk 0:02:58.9]} 8... Rxe4 {[%clk 0:03:11.6]} 9. a3 {[%clk 0:02:59.5]}
9... Bd6 {[%clk 0:03:13]} 10. f4 {[%clk 0:03:00]} 10... Re8 {[%clk 0:03:13.6]}
11. Bd3 {[%clk 0:03:00.8]} 11... Bf8 {[%clk 0:03:10.7]} 12. Nf3 {[%clk
0:03:01.6]} 12... d6 {[%clk 0:03:08.3]} 13. Ng5 {[%clk 0:03:02.5]} 13... Nd4
{[%clk 0:02:49]} 14. Rde1 {[%clk 0:03:00.8]} 14... Bf5 {[%clk 0:02:47.7]} 15.
Nce4 {[%clk 0:02:47.6]} 15... d5 {[%clk 0:02:31.2]} 16. Nf2 {[%clk 0:02:42]}
16... h6 {[%clk 0:02:26.9]} 17. h4 {[%clk 0:02:41.7]} 17... Qd7 {[%clk
0:02:06.4]} 18. Bc3 {[%clk 0:02:37.7]} 18... Bxd3 {[%clk 0:01:47.5]} 19. Qxd3
{[%clk 0:02:37.7]} 19... c5 {[%clk 0:01:19.4]} 20. Bxd4 {[%clk 0:02:36.2]} 20...
cxd4 {[%clk 0:01:20.7]} 21. Qxd4 {[%clk 0:02:33.1]} 21... hxg5 {[%clk
0:01:16.1]} 22. Rxe8 {[%clk 0:02:31.4]} 22... Rxe8 {[%clk 0:01:16.4]} 23. hxg5
{[%clk 0:02:32.3]} 23... Ne4 {[%clk 0:01:04.8]} 24. Qd3 {[%clk 0:02:24]} 24...
g6 {[%clk 0:01:06.1]} 25. Nxe4 {[%clk 0:02:10.7]} 25... Rxe4 {[%clk 0:01:07.2]}
26. Qh3 {[%clk 0:02:05.7]} 26... Qxh3 {[%clk 0:01:08.1]} 0-1

[Event "*** Titled Tuesday Blitz AM"]
[Site "Chess.com"]
[Date "2020.01.07"]
[Round "4"]
[White "rquery98"]
[Black "MiroVlasenko"]
[Result "1-0"]
[WhiteElo "2541"]
[BlackElo "2692"]
[TimeControl "180+2"]
[EndTime "9:48:59 PST"]
[Termination "rquery98 won by resignation"]

1. e4 {[%clk 0:03:01.9]} 1... Nc6 {[%clk 0:03:00.5]} 2. Nf3 {[%clk 0:03:01.6]}
2... d6 {[%clk 0:03:01.7]} 3. Bc4 {[%clk 0:02:59.6]} 3... Nf6 {[%clk 0:03:02.8]}
4. d3 {[%clk 0:02:58]} 4... g6 {[%clk 0:03:03.5]} 5. O-O {[%clk 0:02:57.8]} 5...
Bg7 {[%clk 0:03:03.8]} 6. c3 {[%clk 0:02:58.3]} 6... O-O {[%clk 0:03:04.1]} 7.
Re1 {[%clk 0:02:59.6]} 7... d5 {[%clk 0:03:04.1]} 8. exd5 {[%clk 0:02:59.9]}
8... Nxd5 {[%clk 0:03:06]} 9. d4 {[%clk 0:02:59.4]} 9... Nb6 {[%clk 0:02:57.8]}
10. Bb3 {[%clk 0:03:00.2]} 10... e5 {[%clk 0:02:58.2]} 11. Bg5 {[%clk
0:02:57.6]} 11... Qd6 {[%clk 0:02:54.6]} 12. dxe5 {[%clk 0:02:48.4]} 12... Nxe5
{[%clk 0:02:48.3]} 13. Nxe5 {[%clk 0:02:43.4]} 13... Bxe5 {[%clk 0:02:45.7]} 14.
Qxd6 {[%clk 0:02:44.6]} 14... Bxd6 {[%clk 0:02:45.7]} 15. Nd2 {[%clk 0:02:46.2]}
15... Kg7 {[%clk 0:02:36.4]} 16. Ne4 {[%clk 0:02:11.6]} 16... Be5 {[%clk
0:02:27.8]} 17. f4 {[%clk 0:02:00.7]} 17... h6 {[%clk 0:02:24.8]} 18. fxe5
{[%clk 0:02:01.8]} 18... hxg5 {[%clk 0:02:24.8]} 19. Nxg5 {[%clk 0:02:03.7]}
19... Bf5 {[%clk 0:02:24.7]} 20. e6 {[%clk 0:01:57.5]} 20... f6 {[%clk
0:02:11.9]} 21. Nf3 {[%clk 0:01:57.7]} 21... Rfe8 {[%clk 0:02:05.8]} 22. Nd4
{[%clk 0:01:58]} 22... c5 {[%clk 0:02:04.8]} 23. Nxf5+ {[%clk 0:01:49.9]} 23...
gxf5 {[%clk 0:02:05.5]} 24. Bc2 {[%clk 0:01:50]} 24... Nc4 {[%clk 0:02:05.9]}
25. Bxf5 {[%clk 0:01:46.4]} 25... Rad8 {[%clk 0:02:05.9]} 26. Red1 {[%clk
0:01:39.6]} 26... Ne3 {[%clk 0:01:57.5]} 27. Rd7+ {[%clk 0:01:40.6]} 27... Rxd7
{[%clk 0:01:41.8]} 28. exd7 {[%clk 0:01:42.5]} 28... Rd8 {[%clk 0:01:43.2]} 29.
Be6 {[%clk 0:01:40.9]} 1-0

[Event "*** Titled Tuesday Blitz AM"]
[Site "Chess.com"]
[Date "2020.01.07"]
[Round "4"]
[White "Annawel"]
[Black "mouseWLZ"]
[Result "0-1"]
[WhiteElo "2985"]
[BlackElo "2819"]
[TimeControl "180+2"]
[EndTime "9:49:23 PST"]
[Termination "mouseWLZ won by checkmate"]

1. Nf3 {[%clk 0:03:01.9]} 1... Nf6 {[%clk 0:03:00]} 2. g3 {[%clk 0:03:03.1]}
2... g6 {[%clk 0:03:00.7]} 3. Bg2 {[%clk 0:03:05]} 3... Bg7 {[%clk 0:03:02.3]}
4. O-O {[%clk 0:03:06.9]} 4... O-O {[%clk 0:03:03.8]} 5. d4 {[%clk 0:03:08.1]}
5... d6 {[%clk 0:03:04.9]} 6. c4 {[%clk 0:03:09.5]} 6... Nc6 {[%clk 0:03:06.2]}
7. Nc3 {[%clk 0:03:10.3]} 7... e5 {[%clk 0:03:05.2]} 8. dxe5 {[%clk 0:03:12]}
8... Nxe5 {[%clk 0:03:04.5]} 9. Nxe5 {[%clk 0:03:03.2]} 9... dxe5 {[%clk
0:03:04.5]} 10. Qc2 {[%clk 0:03:05.1]} 10... c6 {[%clk 0:02:45.1]} 11. b3 {[%clk
0:02:57.7]} 11... Qc7 {[%clk 0:02:46]} 12. Bb2 {[%clk 0:02:55.6]} 12... Rd8
{[%clk 0:02:44.7]} 13. Rad1 {[%clk 0:02:56.5]} 13... Bf5 {[%clk 0:02:41.2]} 14.
Qc1 {[%clk 0:02:55.4]} 14... Rxd1 {[%clk 0:02:42.2]} 15. Rxd1 {[%clk 0:02:57.3]}
15... Rd8 {[%clk 0:02:41.7]} 16. h3 {[%clk 0:02:57.5]} 16... h5 {[%clk 0:02:39]}
17. Rxd8+ {[%clk 0:02:46.7]} 17... Qxd8 {[%clk 0:02:40.9]} 18. Qd1 {[%clk
0:02:48.6]} 18... Qxd1+ {[%clk 0:02:37.7]} 19. Nxd1 {[%clk 0:02:50.5]} 19... Nd7
{[%clk 0:02:39.4]} 20. e4 {[%clk 0:02:41.9]} 20... Be6 {[%clk 0:02:38.4]} 21.
Kf1 {[%clk 0:02:41.3]} 21... f6 {[%clk 0:02:39.6]} 22. Ke2 {[%clk 0:02:39.8]}
22... Bh6 {[%clk 0:02:38.7]} 23. Ne3 {[%clk 0:02:39.2]} 23... Kf7 {[%clk
0:02:37.6]} 24. Bc1 {[%clk 0:02:37.6]} 24... b6 {[%clk 0:02:34.7]} 25. Bd2
{[%clk 0:02:37.1]} 25... a5 {[%clk 0:02:33.3]} 26. h4 {[%clk 0:02:33.7]} 26...
Nc5 {[%clk 0:02:32.1]} 27. Bc3 {[%clk 0:02:26.9]} 27... a4 {[%clk 0:02:30.4]}
28. b4 {[%clk 0:02:27.4]} 28... Nb7 {[%clk 0:02:27.9]} 29. Bf1 {[%clk
0:02:26.7]} 29... Nd6 {[%clk 0:02:28.7]} 30. Bd2 {[%clk 0:02:19.5]} 30... Nxe4
{[%clk 0:02:27.4]} 31. Be1 {[%clk 0:02:15.9]} 31... Nd6 {[%clk 0:02:26.6]} 32.
c5 {[%clk 0:02:16.6]} 32... bxc5 {[%clk 0:02:26.3]} 33. bxc5 {[%clk 0:02:18.5]}
33... Nb5 {[%clk 0:02:24.9]} 34. Bg2 {[%clk 0:02:16.9]} 34... Bxa2 {[%clk
0:02:23.6]} 35. Kd3 {[%clk 0:02:17.3]} 35... a3 {[%clk 0:02:19.5]} 36. Bxc6
{[%clk 0:02:18.3]} 36... Bb1+ {[%clk 0:02:14.8]} 37. Kc4 {[%clk 0:02:16.7]}
37... a2 {[%clk 0:02:13.8]} 38. Kxb5 {[%clk 0:02:18.3]} 38... a1=Q {[%clk
0:02:03.4]} 39. Bd5+ {[%clk 0:02:19.7]} 39... Ke7 {[%clk 0:02:04.5]} 40. Bb4
{[%clk 0:02:21.1]} 40... Bxe3 {[%clk 0:02:03.7]} 41. fxe3 {[%clk 0:02:23]} 41...
Bd3+ {[%clk 0:02:04.2]} 42. Kb6 {[%clk 0:02:24.1]} 42... Qa6+ {[%clk 0:02:04.6]}
43. Kc7 {[%clk 0:02:25.6]} 43... Qb5 {[%clk 0:02:04.3]} 44. Ba3 {[%clk
0:02:22.9]} 44... Qa5+ {[%clk 0:02:04.7]} 45. Kb8 {[%clk 0:02:24.5]} 45... Qxa3
{[%clk 0:02:05.5]} 46. c6 {[%clk 0:02:26.4]} 46... Qd6+ {[%clk 0:02:06.2]} 47.
c7 {[%clk 0:02:28.3]} 47... Bf5 {[%clk 0:02:03.3]} 48. Be6 {[%clk 0:02:30.1]}
48... Bxe6 {[%clk 0:02:03.3]} 49. g4 {[%clk 0:02:31.9]} 49... Qb6+ {[%clk
0:02:02.4]} 50. Ka8 {[%clk 0:02:33.2]} 50... Qxc7 {[%clk 0:02:03.7]} 51. g5
{[%clk 0:02:33.5]} 51... Bd5# {[%clk 0:02:04.6]} 0-1

[Event "*** Titled Tuesday Blitz AM"]
[Site "Chess.com"]
[Date "2020.01.07"]
[Round "4"]
[White "bascheyaro"]
[Black "MishkaFighter"]
[Result "1-0"]
[WhiteElo "2696"]
[BlackElo "2440"]
[TimeControl "180+2"]
[EndTime "9:49:27 PST"]
[Termination "bascheyaro won by checkmate"]

1. d4 {[%clk 0:03:01.9]} 1... Nf6 {[%clk 0:02:59.5]} 2. c4 {[%clk 0:03:03.2]}
2... e6 {[%clk 0:03:00.4]} 3. Nf3 {[%clk 0:03:04.7]} 3... d5 {[%clk 0:03:00.2]}
4. Nc3 {[%clk 0:03:05.7]} 4... c6 {[%clk 0:03:01.1]} 5. Bg5 {[%clk 0:03:06.9]}
5... Nbd7 {[%clk 0:03:01.5]} 6. e3 {[%clk 0:03:08.2]} 6... Qa5 {[%clk 0:03:03]}
7. Bxf6 {[%clk 0:03:08.6]} 7... Nxf6 {[%clk 0:03:03.6]} 8. Qc2 {[%clk
0:03:09.6]} 8... Bb4 {[%clk 0:03:04.6]} 9. Nd2 {[%clk 0:03:09.3]} 9... O-O
{[%clk 0:03:00.7]} 10. Bd3 {[%clk 0:03:10.5]} 10... dxc4 {[%clk 0:02:40.5]} 11.
Nxc4 {[%clk 0:03:11.1]} 11... Qh5 {[%clk 0:02:38.9]} 12. h3 {[%clk 0:03:08.7]}
12... b5 {[%clk 0:02:28.7]} 13. Ne5 {[%clk 0:03:09.4]} 13... Bb7 {[%clk
0:02:29.8]} 14. g4 {[%clk 0:03:06.3]} 14... Qh4 {[%clk 0:02:18.9]} 15. Nf3
{[%clk 0:02:51]} 15... Qh6 {[%clk 0:02:18.7]} 16. g5 {[%clk 0:02:52.3]} 16...
Qh5 {[%clk 0:02:19.7]} 17. gxf6 {[%clk 0:02:53.8]} 17... Qxf3 {[%clk 0:02:20.2]}
18. Bxh7+ {[%clk 0:02:54.8]} 18... Kh8 {[%clk 0:02:21.6]} 19. fxg7+ {[%clk
0:02:56.3]} 19... Kxg7 {[%clk 0:02:23.5]} 20. Be4 {[%clk 0:02:56.1]} 20... Qh5
{[%clk 0:02:19.2]} 21. Qe2 {[%clk 0:02:49]} 21... Qh4 {[%clk 0:01:51.2]} 22. Qf3
{[%clk 0:02:41.9]} 22... Rac8 {[%clk 0:01:40]} 23. Rg1+ {[%clk 0:02:40.1]} 23...
Kh8 {[%clk 0:01:41]} 24. Rg4 {[%clk 0:02:38.3]} 24... Qh6 {[%clk 0:00:53.1]} 25.
Qg3 {[%clk 0:02:29.1]} 25... Rg8 {[%clk 0:00:41.7]} 26. Rh4 {[%clk 0:02:27.6]}
26... Bf8 {[%clk 0:00:36.5]} 27. Qf4 {[%clk 0:02:23]} 27... Rg1+ {[%clk
0:00:27]} 28. Ke2 {[%clk 0:02:23.9]} 28... Rxa1 {[%clk 0:00:28.9]} 29. Rxh6+
{[%clk 0:02:24.5]} 29... Bxh6 {[%clk 0:00:30.8]} 30. Qxh6+ {[%clk 0:02:25.5]}
30... Kg8 {[%clk 0:00:32.7]} 31. Bh7+ {[%clk 0:02:26.9]} 31... Kh8 {[%clk
0:00:34.3]} 32. Bg6+ {[%clk 0:02:28.4]} 32... Kg8 {[%clk 0:00:36.2]} 33. Qh7+
{[%clk 0:02:30.3]} 33... Kf8 {[%clk 0:00:37.9]} 34. Qxf7# {[%clk 0:02:32.2]} 1-0

[Event "*** Titled Tuesday Blitz AM"]
[Site "Chess.com"]
[Date "2020.01.07"]
[Round "4"]
[White "Ba_clbaf_osed_ingo_3v21"]
[Black "Genghis_K"]
[Result "0-1"]
[WhiteElo "2555"]
[BlackElo "2886"]
[TimeControl "180+2"]
[EndTime "9:49:31 PST"]
[Termination "Genghis_K won by resignation"]

1. Nf3 {[%clk 0:03:01.9]} 1... Nf6 {[%clk 0:02:23.1]} 2. c4 {[%clk 0:03:02.7]}
2... e6 {[%clk 0:02:24.6]} 3. g3 {[%clk 0:03:03.5]} 3... d5 {[%clk 0:02:25.9]}
4. d4 {[%clk 0:03:03.5]} 4... Be7 {[%clk 0:02:24.8]} 5. Bg2 {[%clk 0:03:04.6]}
5... O-O {[%clk 0:02:26.4]} 6. O-O {[%clk 0:03:06.5]} 6... dxc4 {[%clk
0:02:26.9]} 7. Qc2 {[%clk 0:03:07.9]} 7... a6 {[%clk 0:02:27.5]} 8. a4 {[%clk
0:03:09.3]} 8... Bd7 {[%clk 0:02:27.2]} 9. Rd1 {[%clk 0:03:10.7]} 9... Nc6
{[%clk 0:02:25]} 10. Qxc4 {[%clk 0:03:07.5]} 10... b5 {[%clk 0:02:26]} 11. Qb3
{[%clk 0:03:03.2]} 11... Na5 {[%clk 0:02:21]} 12. Qc3 {[%clk 0:02:46.2]} 12...
Nd5 {[%clk 0:02:20.2]} 13. Qxa5 {[%clk 0:02:46]} 13... Bb4 {[%clk 0:02:20.1]}
14. axb5 {[%clk 0:02:27.6]} 14... Bxa5 {[%clk 0:02:18.4]} 15. Rxa5 {[%clk
0:02:29.5]} 15... axb5 {[%clk 0:02:17.7]} 16. Rxa8 {[%clk 0:02:29.2]} 16... Qxa8
{[%clk 0:02:19.6]} 17. Ne5 {[%clk 0:02:30.5]} 17... Bc8 {[%clk 0:02:20.7]} 18.
Nc3 {[%clk 0:02:28.9]} 18... Bb7 {[%clk 0:02:21.9]} 19. Nxb5 {[%clk 0:02:24.3]}
19... Qa5 {[%clk 0:02:23.1]} 20. Nc3 {[%clk 0:02:20.8]} 20... Nxc3 {[%clk
0:02:21.5]} 21. bxc3 {[%clk 0:02:22.7]} 21... Bxg2 {[%clk 0:02:22.5]} 22. Kxg2
{[%clk 0:02:24.2]} 22... Qxc3 {[%clk 0:02:23.9]} 23. Be3 {[%clk 0:02:25]} 23...
Qc2 {[%clk 0:02:24.2]} 24. Rd2 {[%clk 0:02:25.5]} 24... Qe4+ {[%clk 0:02:25.7]}
25. Kg1 {[%clk 0:02:18.2]} 25... Rb8 {[%clk 0:02:25.7]} 26. Rd1 {[%clk
0:02:19.2]} 26... Rb2 {[%clk 0:02:12.9]} 27. Re1 {[%clk 0:02:14.4]} 27... c5
{[%clk 0:02:14.1]} 28. Nf3 {[%clk 0:02:12.8]} 28... c4 {[%clk 0:02:12.8]} 29.
Ne5 {[%clk 0:02:12]} 29... Rb1 {[%clk 0:02:10.7]} 30. Rxb1 {[%clk 0:02:09.1]}
30... Qxb1+ {[%clk 0:02:12.6]} 31. Kg2 {[%clk 0:02:10.6]} 31... c3 {[%clk
0:02:14.2]} 32. Nd3 {[%clk 0:02:10.4]} 32... h5 {[%clk 0:02:10.9]} 33. h4 {[%clk
0:01:59.3]} 33... c2 {[%clk 0:02:11.7]} 34. Nc1 {[%clk 0:01:51.2]} 34... Qb7+
{[%clk 0:02:09.7]} 35. f3 {[%clk 0:01:52]} 35... Qb4 {[%clk 0:02:08.7]} 36. Kf2
{[%clk 0:01:52.2]} 36... f6 {[%clk 0:02:09]} 37. Nd3 {[%clk 0:01:52.2]} 37...
Qc4 {[%clk 0:02:08.5]} 38. Nc1 {[%clk 0:01:51.8]} 38... Kf7 {[%clk 0:02:08]} 39.
Nd3 {[%clk 0:01:52.7]} 39... Qb5 {[%clk 0:02:08.3]} 40. Nc1 {[%clk 0:01:52.9]}
40... g5 {[%clk 0:02:09.5]} 41. Nd3 {[%clk 0:01:40.6]} 41... gxh4 {[%clk
0:02:07.7]} 42. gxh4 {[%clk 0:01:42.5]} 42... Qb8 {[%clk 0:02:07.3]} 43. Bf4
{[%clk 0:01:41.7]} 43... Qxf4 {[%clk 0:02:07.2]} 0-1

[Event "*** Titled Tuesday Blitz AM"]
[Site "Chess.com"]
[Date "2020.01.07"]
[Round "4"]
[White "Flawless_Fighter"]
[Black "Shivagami"]
[Result "1-0"]
[WhiteElo "2452"]
[BlackElo "2143"]
[TimeControl "180+2"]
[EndTime "9:49:32 PST"]
[Termination "Flawless_Fighter won by resignation"]

1. e4 {[%clk 0:02:54.9]} 1... e5 {[%clk 0:03:00.3]} 2. Nf3 {[%clk 0:02:54]} 2...
Nc6 {[%clk 0:03:00.6]} 3. Bb5 {[%clk 0:02:55.2]} 3... a6 {[%clk 0:03:00.2]} 4.
Ba4 {[%clk 0:02:56.6]} 4... Nf6 {[%clk 0:03:01]} 5. O-O {[%clk 0:02:58.2]} 5...
Be7 {[%clk 0:03:02.4]} 6. Re1 {[%clk 0:02:59.3]} 6... b5 {[%clk 0:03:04]} 7. Bb3
{[%clk 0:03:00.1]} 7... d6 {[%clk 0:03:05.6]} 8. c3 {[%clk 0:03:01.4]} 8... O-O
{[%clk 0:03:07.2]} 9. h3 {[%clk 0:03:02.9]} 9... Nb8 {[%clk 0:03:08.5]} 10. d4
{[%clk 0:03:04]} 10... Nbd7 {[%clk 0:03:07.4]} 11. c4 {[%clk 0:03:04]} 11... Bb7
{[%clk 0:03:04.1]} 12. Nc3 {[%clk 0:03:03.3]} 12... b4 {[%clk 0:02:36.3]} 13.
Nd5 {[%clk 0:03:03.8]} 13... c6 {[%clk 0:02:32]} 14. Nxe7+ {[%clk 0:02:59.1]}
14... Qxe7 {[%clk 0:02:30.8]} 15. Nh4 {[%clk 0:02:57.6]} 15... exd4 {[%clk
0:02:20.4]} 16. Nf5 {[%clk 0:02:55.9]} 16... Qe5 {[%clk 0:02:06.5]} 17. Qf3
{[%clk 0:02:39.8]} 17... Ne8 {[%clk 0:01:31.3]} 18. Bf4 {[%clk 0:02:06]} 18...
Qf6 {[%clk 0:01:32]} 19. Qg3 {[%clk 0:02:03.6]} 19... d5 {[%clk 0:00:52.9]} 20.
cxd5 {[%clk 0:01:46.5]} 20... cxd5 {[%clk 0:00:52.9]} 21. Bg5 {[%clk 0:01:40.2]}
21... Qg6 {[%clk 0:00:44.3]} 22. Ne7+ {[%clk 0:01:39.8]} 1-0

[Event "*** Titled Tuesday Blitz AM"]
[Site "Chess.com"]
[Date "2020.01.07"]
[Round "4"]
[White "JSPrepz"]
[Black "IwkooO"]
[Result "1-0"]
[WhiteElo "2810"]
[BlackElo "2575"]
[TimeControl "180+2"]
[EndTime "9:50:00 PST"]
[Termination "JSPrepz won by resignation"]

1. e4 {[%clk 0:03:00.1]} 1... c5 {[%clk 0:03:00.7]} 2. Nf3 {[%clk 0:03:01]} 2...
g6 {[%clk 0:03:02.2]} 3. b3 {[%clk 0:02:51.2]} 3... Bg7 {[%clk 0:03:02.9]} 4.
Nc3 {[%clk 0:02:52.7]} 4... Nc6 {[%clk 0:03:01.7]} 5. Bb2 {[%clk 0:02:53.3]}
5... d6 {[%clk 0:03:02.6]} 6. Bc4 {[%clk 0:02:51.2]} 6... Nf6 {[%clk 0:03:00.8]}
7. Nd5 {[%clk 0:02:52.1]} 7... e6 {[%clk 0:02:57.9]} 8. Nxf6+ {[%clk 0:02:53.3]}
8... Bxf6 {[%clk 0:02:59.8]} 9. Bxf6 {[%clk 0:02:53.5]} 9... Qxf6 {[%clk
0:03:01.7]} 10. O-O {[%clk 0:02:54.3]} 10... O-O {[%clk 0:03:02.8]} 11. c3
{[%clk 0:02:55.8]} 11... e5 {[%clk 0:02:59.6]} 12. h3 {[%clk 0:02:56.3]} 12...
Be6 {[%clk 0:02:59.3]} 13. Bxe6 {[%clk 0:02:57.5]} 13... fxe6 {[%clk 0:02:59.4]}
14. Qe2 {[%clk 0:02:57.9]} 14... d5 {[%clk 0:02:51.3]} 15. a3 {[%clk 0:02:54.8]}
15... Rad8 {[%clk 0:02:41.8]} 16. b4 {[%clk 0:02:49.2]} 16... c4 {[%clk
0:02:39.6]} 17. Rfe1 {[%clk 0:02:50.3]} 17... Rfe8 {[%clk 0:02:39.3]} 18. b5
{[%clk 0:02:48.3]} 18... Na5 {[%clk 0:02:38.6]} 19. exd5 {[%clk 0:02:49.6]}
19... exd5 {[%clk 0:02:33.3]} 20. Nxe5 {[%clk 0:02:50.6]} 20... Kg7 {[%clk
0:02:28.6]} 21. Qe3 {[%clk 0:02:40]} 21... Nb3 {[%clk 0:02:26.1]} 22. Rad1
{[%clk 0:02:36.8]} 22... Re7 {[%clk 0:02:18.2]} 23. f4 {[%clk 0:02:27.6]} 23...
d4 {[%clk 0:02:17.3]} 24. cxd4 {[%clk 0:02:28.1]} 24... Rxd4 {[%clk 0:02:19.2]}
25. g3 {[%clk 0:02:25.3]} 25... Qd6 {[%clk 0:02:03.6]} 26. Qc3 {[%clk
0:02:20.9]} 26... Qc5 {[%clk 0:01:58.6]} 27. Kh2 {[%clk 0:02:14.8]} 27... Qxb5
{[%clk 0:01:57.1]} 28. Nf3 {[%clk 0:02:06.9]} 28... Rd7 {[%clk 0:01:56.1]} 29.
Re4 {[%clk 0:01:56.2]} 29... Qc5 {[%clk 0:01:43.1]} 30. Rde1 {[%clk 0:01:56.7]}
30... Kh6 {[%clk 0:01:40.7]} 31. Nxd4 {[%clk 0:01:57.2]} 31... Nxd4 {[%clk
0:01:38.1]} 32. Qe3 {[%clk 0:01:54.6]} 32... Nb3 {[%clk 0:01:26.5]} 33. Qxc5
{[%clk 0:01:45.3]} 33... Rxd2+ {[%clk 0:01:27.6]} 34. Kg1 {[%clk 0:01:33.3]}
34... Nxc5 {[%clk 0:01:28.2]} 35. Rxc4 {[%clk 0:01:34.6]} 35... b6 {[%clk
0:01:26.9]} 36. Re7 {[%clk 0:01:34.2]} 36... Rd3 {[%clk 0:01:28.1]} 37. g4
{[%clk 0:01:35.7]} 37... Rxa3 {[%clk 0:01:27.7]} 38. g5+ {[%clk 0:01:34.4]} 1-0